fUSD/lending_fUSD_20241208
["ID","MTS","AMOUNT","RATE_DAILY","PERIOD"]
[344624677,1733631042775,-1000.0,0.00022979,2]
[344624678,1733631042784,-1000.0,0.00022979,2]
[344624679,1733631042794,-352.25678,0.00022979,2]
[344624680,1733631042803,-2293.89,0.00022979,5]
[344624681,1733631042812,-2293.89,0.00022979,5]
[344624682,1733631042821,-2293.89,0.00022979,5]
[344624683,1733631042830,-2293.89,0.00022979,5]
[344624684,1733631042840,-2293.89,0.00022979,5]
[344624685,1733631042850,-2293.89,0.00022979,5]
[344624686,1733631042859,-2293.89,0.00022979,5]
[344624687,1733631042869,-2293.89,0.00022998,5]
[344624688,1733631042877,-1075.02639277,0.00022999,10]
[344624689,1733631042886,-2000.0,0.00022999,2]
[344624690,1733631042895,-1075.02639277,0.00022999,10]
[344624691,1733631042905,-2000.0,0.00022999,2]
[344624692,1733631042914,-2007.678,0.00022999,2]
[344624693,1733631042924,-2293.89,0.00022999,5]
[344624694,1733631042934,-2293.89,0.00022999,5]
[344624695,1733631042943,-2293.89,0.00022999,5]
[344624696,1733631042952,-2293.89,0.00022999,5]
[344624697,1733631042962,-2293.89,0.00022999,5]
[344624698,1733631042971,-2293.89,0.00022999,5]
[344624699,1733631042980,-2293.89,0.00022999,5]
[344624700,1733631042989,-2293.89,0.00022999,5]
[344624701,1733631042998,-2293.89,0.00022999,5]
[344624702,1733631043008,-2293.89,0.00022999,5]
[344624703,1733631043016,-2293.89,0.00022999,5]
[344624704,1733631043025,-2293.89,0.00022999,5]
[344624705,1733631043035,-2294.08585149,0.00022999,5]
[344624706,1733631043045,-2000.0,0.00022999,2]
[344624708,1733631043219,-64117509.80220366,0.00023,3]
[344624709,1733631043229,-5061.717303,0.00023,2]
[344624710,1733631043238,-320.0,0.00023,10]
[344624711,1733631043248,-42777.50219059,0.00023,5]
[344624712,1733631043265,-1000.0,0.00023,14]
[344624713,1733631043275,-3000.0,0.00023,2]
[344624714,1733631043284,-5000.0,0.00023,2]
[344624715,1733631043293,-15231.0,0.00023,2]
[344624716,1733631043302,-4355451.32767675,0.00023,3]
[344624717,1733631043313,-700.0,0.00023,2]
[344624718,1733631043322,-200.0,0.00023,2]
[344624719,1733631043332,-500.0,0.00023,2]
[344624720,1733631043341,-500.0,0.00023,2]
[344624721,1733631043351,-13209244.45872946,0.00023,3]
[344624722,1733631043634,-560.75,0.000222,5]
[344624723,1733631043644,-4899.98,0.00022246,2]
[344624724,1733631043654,-34.7086837,0.00022246,2]
[344624725,1733631043666,-4865.2713163,0.00022246,2]
[344624726,1733631043675,-4899.98,0.00022246,2]
[344624727,1733631043684,-4899.98,0.00022246,2]
[344624728,1733631043694,-4899.98,0.00022246,2]
[344624729,1733631043703,-4899.98,0.00022246,2]
[344624730,1733631043712,-29620.07306244,0.00023,3]
[344624731,1733631043724,-72866.2593287,0.00023,3]
[344624732,1733631043739,-491.58913642,0.00022246,2]
[344624733,1733631043840,-268.58,0.00020819,15]
[344624734,1733631043852,-317.92,0.00020819,15]
[344624735,1733631043867,-69.372002,0.00022246,2]
[344624736,1733631043879,-1302.1840501,0.00022246,2]
[344624737,1733631043891,-2961.58795702,0.00022246,2]
[344624738,1733631043904,-75.24685446,0.00022246,2]
[344624739,1733631043915,-4899.98,0.00022246,2]
[344624740,1733631043925,-854.78573821,0.00022246,2]
[344624741,1733631043941,-378.29076813,0.00022246,2]
[344624953,1733631046643,-3666.90349366,0.00022246,2]
[344624954,1733631046654,-4899.98,0.00022246,2]
[344624955,1733631046664,-4899.98,0.00022246,2]
[344624956,1733631046674,-4899.98,0.00022246,2]
[344624957,1733631046684,-4899.98,0.00022246,2]
[344624958,1733631046694,-4900.20079523,0.00022246,2]
[344624959,1733631046704,-563296.42761709,0.00023,3]
[344624960,1733631046716,-2999.9999995,0.00023,3]
[344624961,1733631046727,-479.66,0.00023,3]
[344624979,1733632232007,-450.0,0.00013,2]
[344624980,1733632232017,-500.0,0.00015,2]
[344624981,1733632232027,-150.0,0.00016651,2]
[344624982,1733632232036,-550.0,0.00017,2]
[344624983,1733632232047,-212.07,0.000183,2]
[344624984,1733632232056,-600.0,0.00019,2]
[344624985,1733632232065,-37.93,0.00019453,2]
[344624986,1733632232076,-134.73,0.00019453,2]
[344624987,1733632232086,-45832.7525694,0.0002,4]
[344624988,1733632232096,-33367.43729346,0.0002,2]
[344624989,1733632232106,-2000.0,0.0002,2]
[344624990,1733632232115,-14000.0,0.0002,2]
[344624991,1733632232125,-23639.72,0.000209,2]
[344624992,1733632232135,-1885.0,0.000209,3]
[344624993,1733632232145,-1494.16,0.00020923,2]
[344624994,1733632232154,-650.0,0.00021,2]
[344624995,1733632232164,-1140.21957815,0.00021,2]
[344624996,1733632232173,-188.14275051,0.00021,2]
[344624997,1733632232182,-1486.61,0.00021051,2]
[344624998,1733632232192,-250.0,0.00021149,2]
[344624999,1733632232201,-200.0,0.00021179,2]
[344625000,1733632232210,-250.0,0.00021179,2]
[344625001,1733632232219,-396.2,0.00021216,2]
[344625002,1733632232228,-2000.0,0.00021278,2]
[344625003,1733632232237,-373.67,0.00021319,2]
[344625004,1733632232248,-435.57,0.00021341,2]
[344625005,1733632232257,-5009.54,0.0002137,2]
[344625006,1733632232267,-1265.305,0.00021439,2]
[344625007,1733632232277,-1899.312,0.00021439,2]
[344625008,1733632232286,-767.18,0.00021455,30]
[344625010,1733632232295,-554.78407935,0.000215,90]
[344625011,1733632232304,-4484.02312464,0.0002152,2]
[344625012,1733632232312,-442.12,0.00021641,2]
[344625013,1733632232321,-435.57,0.00021641,2]
[344625014,1733632232330,-500.0,0.0002169,2]
[344625015,1733632232339,-360.42053978,0.0002169,2]
[344625016,1733632232348,-7220.56937896,0.000217,2]
[344625017,1733632232357,-172.66,0.00021717,2]
[344625018,1733632232366,-169.22,0.00021753,2]
[344625019,1733632232375,-200.0,0.000219,2]
[344625020,1733632232385,-374.79564862,0.00021917,2]
[344625021,1733632232394,-500.0,0.00021917,2]
[344625022,1733632232403,-500.0,0.00021917,2]
[344625023,1733632232412,-500.0,0.00021917,2]
[344625024,1733632232421,-500.0,0.00021917,2]
[344625025,1733632232431,-1617.63,0.00021918,2]
[344625027,1733632232439,-244.88365168,0.00022,2]
[344625029,1733632232448,-753.88042592,0.00022,7]
[344625030,1733632232457,-7993.93617248,0.00022,15]
[344625032,1733632232466,-8629.23430121,0.00022,2]
[344625034,1733632232475,-172.0,0.00022,2]
[344625036,1733632232484,-500.0,0.00022057,2]
[344625038,1733632232495,-229.49625553,0.0002211,2]
[344625040,1733632232505,-1000.0,0.00022214,2]
[344625042,1733632232514,-502.53416372,0.00022238,2]
[344625044,1733632232523,-500.0,0.00022246,2]
[344625046,1733632232532,-349.04,0.00022246,2]
[344625048,1733632232542,-169.22,0.00022454,2]
[344625050,1733632232552,-2900.0,0.000225,15]
[344625052,1733632232561,-33866.59067023,0.000225,2]
[344625054,1733632232569,-2331.49,0.00022599,2]
[344625056,1733632232578,-184.316,0.00022599,2]
[344625058,1733632232587,-2000.0,0.00022799,120]
[344625060,1733632232596,-180.449985,0.00022799,120]
[344625062,1733632232605,-200.0,0.00022799,120]
[344625064,1733632232615,-512.44252307,0.000228,14]
[344625067,1733632232624,-569.02,0.00022993,2]
[344625069,1733632232633,-13709.494876,0.00022994,2]
[344625071,1733632232642,-272.8977287,0.00022999,2]
[344625073,1733632232651,-500.0,0.00022999,2]
[344625075,1733632232660,-500.0,0.00022999,2]
[344625077,1733632232669,-500.0,0.00022999,2]
[344625079,1733632232678,-370.23383079,0.00022999,2]
[344625081,1733632232687,-500.0,0.00022999,2]
[344625083,1733632232700,-500.0,0.00022999,2]
[344625085,1733632232709,-500.0,0.00022999,2]
[344625087,1733632232718,-500.0,0.00022999,2]
[344625089,1733632232727,-500.0,0.00022999,2]
[344625091,1733632232737,-2000.0,0.00022999,2]
[344625093,1733632232746,-508.12215215,0.00022999,2]
[344625095,1733632232755,-500.0,0.00022999,2]
[344625097,1733632232769,-500.0,0.00022999,2]
[344625099,1733632232777,-500.0,0.00022999,2]
[344625101,1733632232786,-500.0,0.00022999,2]
[344625123,1733632232968,-500.0,0.00022999,2]
[344625125,1733632232978,-500.0,0.00022999,2]
[344625127,1733632232987,-500.0,0.00022999,2]
[344625129,1733632232997,-500.0,0.00022999,2]
[344625131,1733632233006,-500.0,0.00022999,2]
[344625133,1733632233015,-500.0,0.00022999,2]
[344625135,1733632233024,-500.0,0.00022999,2]
[344625137,1733632233033,-500.0,0.00022999,2]
[344625139,1733632233042,-500.0,0.00022999,2]
[344625141,1733632233051,-500.0,0.00022999,2]
[344625143,1733632233061,-629.12,0.00022999,2]
[344625145,1733632233069,-500.0,0.00022999,2]
[344625147,1733632233079,-500.0,0.00022999,2]
[344625149,1733632233088,-503.70162923,0.00022999,2]
[344625151,1733632233097,-500.0,0.00022999,2]
[344625153,1733632233106,-500.0,0.00022999,2]
[344625155,1733632233114,-500.0,0.00022999,2]
[344625157,1733632233123,-313.64,0.00022999,2]
[344625159,1733632233132,-500.0,0.00022999,2]
[344625161,1733632233141,-500.0,0.00022999,2]
[344625163,1733632233150,-375.77882947,0.00022999,2]
[344625165,1733632233160,-683.62,0.00022999,2]
[344625167,1733632233169,-683.62,0.00022999,2]
[344625169,1733632233178,-683.62,0.00022999,2]
[344625171,1733632233187,-683.62,0.00022999,2]
[344625173,1733632233197,-683.62,0.00022999,2]
[344625175,1733632233207,-683.62,0.00022999,2]
[344625177,1733632233216,-683.62,0.00022999,2]
[344625179,1733632233225,-683.62,0.00022999,2]
[344625181,1733632233234,-683.62,0.00022999,2]
[344625183,1733632233243,-683.62,0.00022999,2]
[344625186,1733632233262,-683.62,0.00022999,2]
[344625188,1733632233273,-683.62,0.00022999,2]
[344625191,1733632233282,-683.62,0.00022999,2]
[344625193,1733632233292,-683.62,0.00022999,2]
[344625195,1733632233301,-683.62,0.00022999,2]
[344625197,1733632233311,-683.62,0.00022999,2]
[344625199,1733632233320,-683.62,0.00022999,2]
[344625201,1733632233330,-683.62,0.00022999,2]
[344625203,1733632233340,-683.62,0.00022999,2]
[344625205,1733632233349,-683.62,0.00022999,2]
[344625207,1733632233359,-683.62,0.00022999,2]
[344625209,1733632233368,-683.62,0.00022999,2]
[344625211,1733632233378,-683.62,0.00022999,2]
[344625213,1733632233387,-683.69599176,0.00022999,2]
[344625215,1733632233397,-500.0,0.00022999,2]
[344625217,1733632233407,-500.0,0.00022999,2]
[344625219,1733632233416,-500.0,0.00022999,2]
[344625221,1733632233426,-500.0,0.00022999,2]
[344625223,1733632233435,-536.8886075,0.00022999,2]
[344625225,1733632233444,-500.0,0.00022999,2]
[344625227,1733632233454,-500.0,0.00022999,2]
[344625229,1733632233463,-500.0,0.00022999,2]
[344625231,1733632233472,-500.0,0.00022999,2]
[344625233,1733632233482,-500.0,0.00022999,2]
[344625235,1733632233491,-500.0,0.00022999,2]
[344625237,1733632233502,-500.0,0.00022999,2]
[344625239,1733632233511,-500.0,0.00022999,2]
[344625241,1733632233520,-343.97999797,0.00022999,2]
[344625243,1733632233530,-600.0,0.00022999,2]
[344625245,1733632233539,-600.0,0.00022999,2]
[344625247,1733632233549,-600.0,0.00022999,2]
[344625249,1733632233559,-600.0,0.00022999,2]
[344625251,1733632233568,-600.0,0.00022999,2]
[344625253,1733632233578,-600.0,0.00022999,2]
[344625255,1733632233587,-600.0,0.00022999,2]
[344625257,1733632233597,-500.0,0.00022999,2]
[344625259,1733632233606,-500.0,0.00022999,2]
[344625261,1733632233616,-1047.54,0.00022999,2]
[344625263,1733632233625,-1047.54,0.00022999,2]
[344625265,1733632233635,-1047.54,0.00022999,2]
[344625267,1733632233644,-1047.54,0.00022999,2]
[344625269,1733632233654,-156.27960028,0.00022999,2]
[344625272,1733632233672,-891.26039972,0.00022999,2]
[344625274,1733632233682,-1047.54,0.00022999,2]
[344625276,1733632233695,-1047.54,0.00022999,2]
[344625278,1733632233705,-1047.54,0.00022999,2]
[344625280,1733632233715,-1047.54,0.00022999,2]
[344625282,1733632233725,-1047.54,0.00022999,2]
[344625284,1733632233735,-1047.54,0.00022999,2]
[344625286,1733632233745,-1047.54,0.00022999,2]
[344625288,1733632233755,-1047.54,0.00022999,2]
[344625290,1733632233765,-1047.54,0.00022999,2]
[344625292,1733632233775,-1047.54,0.00022999,2]
[344625294,1733632233786,-1047.54,0.00022999,2]
[344625296,1733632233795,-1047.54,0.00022999,2]
[344625298,1733632233805,-1047.54,0.00022999,2]
[344625300,1733632233814,-1047.54,0.00022999,2]
[344625302,1733632233824,-1000.0,0.00022999,5]
[344625304,1733632233834,-410.61694544,0.00022999,2]
[344625307,1733632233846,-636.92305456,0.00022999,2]
[344625308,1733632233855,-813.07694544,0.00022999,2]
[344625335,1733632238072,-234.46305456,0.00022999,2]
[344625336,1733632238083,-1000.0,0.00022999,5]
[344625337,1733632238093,-1000.0,0.00022999,5]
[344625338,1733632238103,-1047.54,0.00022999,2]
[344625339,1733632238112,-1047.54,0.00022999,2]
[344625340,1733632238121,-1000.0,0.00022999,5]
[344625341,1733632238131,-838.08301084,0.00022999,2]
[344625342,1733632238143,-209.62698916,0.00022999,2]
[344625343,1733632238152,-1000.0,0.00022999,5]
[344625344,1733632238161,-1000.0,0.00022999,5]
[344625345,1733632238171,-1000.0,0.00022999,5]
[344625346,1733632238181,-1000.0,0.00022999,5]
[344625347,1733632238190,-1000.0,0.00022999,5]
[344625348,1733632238200,-175.75585149,0.00022999,5]
[344625349,1733632238209,-1075.02639277,0.00022999,10]
[344625350,1733632238219,-5362.31660691,0.00023,2]
[344625351,1733632238229,-20000.0,0.00023,2]
[344625352,1733632238238,-81741217.75450698,0.00023,3]
[344625355,1733632238256,-25933.96890745,0.00023,3]
[344625361,1733632239944,-3810.96854604,0.00023,3]
[344625362,1733632240029,-36260.12012977,0.00023,3]
[344625363,1733632240040,-346947.23079977,0.00023,3]
[344625364,1733632240080,-46190.2597,0.00023,3]
[344625368,1733632243107,-15463.47325848,0.00023,3]
[344625369,1733632243118,-3742.91633405,0.00023,3]
[344625370,1733632243129,-3753.38291688,0.00023,3]
[344625371,1733632243141,-7409.55673066,0.00023,3]
[344625372,1733632243429,-5040.22790285,0.00023,3]
[344625380,1733632246008,-473.25,0.00018397,2]
[344625381,1733632246020,-640.53973,0.00018397,2]
[344625382,1733632246032,-4498.925912,0.00018397,2]
[344625383,1733632246042,-5612.715642,0.00018627,2]
[344625384,1733632246052,-32666.38919228,0.00023,3]
[344625385,1733632246063,-4833.79971318,0.00023,3]
[344625386,1733632246074,-5287.55554354,0.00023,3]
[344625387,1733632246089,-1335.9,0.00023,3]
[344625388,1733632246281,-4494.71797733,0.00018857,2]
[344625389,1733632246293,-1117.99766467,0.00018857,2]
[344625390,1733632246303,-20559.55367721,0.00023,3]
[344625391,1733632246314,-5844.04743749,0.00023,3]
[344625392,1733632246325,-13653.85248473,0.00023,3]
[344625507,1733633432345,-450.0,0.00013,2]
[344625508,1733633432357,-200.0,0.00014956,2]
[344625509,1733633432369,-200.0,0.00014958,2]
[344625510,1733633432381,-102.43900453,0.00014958,2]
[344625511,1733633432395,-97.56099547,0.00014958,2]
[344625512,1733633432406,-253.22256052,0.00014958,2]
[344625513,1733633432418,-600.23125457,0.00014959,2]
[344625514,1733633432429,-200.0,0.00014959,2]
[344625515,1733633432439,-450.17344093,0.0001496,2]
[344625516,1733633432450,-200.0,0.0001496,2]
[344625517,1733633432461,-337.6300807,0.0001496,2]
[344625518,1733633432473,-200.0,0.00014962,2]
[344625519,1733633432483,-253.22256052,0.00014962,2]
[344625520,1733633432494,-200.0,0.00014963,2]
[344625521,1733633432505,-253.22256052,0.00014963,2]
[344625522,1733633432516,-337.6300807,0.00014965,2]
[344625523,1733633432527,-200.0,0.00014968,2]
[344625524,1733633432537,-200.0,0.00014968,2]
[344625525,1733633432553,-200.0,0.0001497,2]
[344625526,1733633432566,-253.22256052,0.0001497,2]
[344625527,1733633432576,-200.0,0.00014973,2]
[344625528,1733633432587,-600.23125457,0.00014978,2]
[344625529,1733633432598,-337.6300807,0.00014979,2]
[344625530,1733633432609,-450.17344093,0.00014979,2]
[344625531,1733633432620,-450.17344093,0.0001498,2]
[344625532,1733633432631,-200.0,0.0001498,2]
[344625533,1733633432642,-160.346718,0.00014981,2]
[344625536,1733633432856,-39.653282,0.00014981,2]
[344625537,1733633432866,-600.23125457,0.00014985,2]
[344625538,1733633432876,-524.56546338,0.00014985,2]
[344625539,1733633432889,-75.66579119,0.00014985,2]
[344625540,1733633432900,-578.91856284,0.00014985,2]
[344625541,1733633432913,-21.31269173,0.00014985,2]
[344625542,1733633432923,-200.0,0.00014985,2]
[344625543,1733633432933,-600.23125457,0.00014986,2]
[344625544,1733633432944,-200.0,0.00014986,2]
[344625545,1733633432954,-200.0,0.00014987,2]
[344625546,1733633432964,-200.0,0.00014989,2]
[344625547,1733633432975,-200.0,0.0001499,2]
[344625548,1733633432985,-337.6300807,0.00014992,2]
[344625549,1733633432995,-200.0,0.00014992,2]
[344625550,1733633433005,-450.17344093,0.00014992,2]
[344625551,1733633433016,-200.0,0.00014993,2]
[344625552,1733633433026,-200.0,0.00014993,2]
[344625553,1733633433036,-337.6300807,0.00014994,2]
[344625554,1733633433051,-337.6300807,0.00014994,2]
[344625555,1733633433062,-450.17344093,0.00014994,2]
[344625556,1733633433073,-253.22256052,0.00014995,2]
[344625557,1733633433084,-200.0,0.00014996,2]
[344625558,1733633433096,-253.22256052,0.00014996,2]
[344625559,1733633433106,-450.17344093,0.00014997,2]
[344625560,1733633433117,-500.0,0.00015,2]
[344625561,1733633433128,-450.0,0.000161,5]
[344625562,1733633433139,-150.55829543,0.00016734,2]
[344625563,1733633433149,-550.0,0.00017,2]
[344625564,1733633433160,-214.76,0.000183,2]
[344625567,1733633433172,-2245.086257,0.00018397,2]
[344625568,1733633433183,-2245.086257,0.00018627,2]
[344625569,1733633433193,-2245.086257,0.00018857,2]
[344625570,1733633433204,-500.0,0.00018973,2]
[344625571,1733633433214,-600.0,0.00019,2]
[344625572,1733633433226,-158890.50724536,0.00019,2]
[344625573,1733633433236,-150.0,0.00019009,2]
[344625574,1733633433246,-2245.086257,0.00019087,2]
[344625575,1733633433257,-2245.086257,0.00019317,2]
[344625576,1733633433267,-150000.0,0.000195,3]
[344625577,1733633433277,-171.62,0.00019892,2]
[344625578,1733633433287,-650.0,0.00021,2]
[344625579,1733633433299,-250.0,0.00021399,2]
[344625580,1733633433309,-965.78,0.00021661,2]
[344625581,1733633433319,-250.0,0.00021706,2]
[344625582,1733633433330,-8721.24,0.00021726,2]
[344625583,1733633433340,-150.0,0.00021781,2]
[344625584,1733633433350,-483.96,0.00021846,2]
[344625585,1733633433361,-728.82,0.00021913,30]
[344625586,1733633433371,-500.0,0.00021917,2]
[344625587,1733633433382,-835.85,0.00021917,2]
[344625588,1733633433392,-1348.02,0.00021918,2]
[344625589,1733633433402,-6740.13,0.00021998,2]
[344625590,1733633433413,-172.0,0.00022,2]
[344625591,1733633433424,-1000.0,0.00022013,2]
[344625592,1733633433434,-500.0,0.00022057,2]
[344625593,1733633433445,-171.62,0.00022155,2]
[344625594,1733633433455,-500.0,0.00022499,2]
[344625595,1733633433466,-2273.1271152,0.0002254,2]
[344625596,1733633433476,-23480.19179618,0.00022567,2]
[344625597,1733633433487,-3000.0,0.000227,2]
[344625598,1733633433497,-70000.0,0.00022714,2]
[344625599,1733633433508,-25238.0,0.000228,2]
[344625600,1733633433518,-500.0,0.00022815,2]
[344625601,1733633433529,-500.0,0.00022816,2]
[344625602,1733633433541,-150.0,0.00022898,3]
[344625603,1733633433551,-150.0,0.00022898,3]
[344625604,1733633433562,-150.0,0.00022898,3]
[344625605,1733633433573,-150.0,0.00022898,3]
[344625606,1733633433584,-150.0,0.00022898,3]
[344625607,1733633433595,-150.0,0.00022898,3]
[344625608,1733633433606,-150.0,0.00022898,3]
[344625609,1733633433617,-150.0,0.00022898,2]
[344625610,1733633433628,-150.0,0.00022898,2]
[344625611,1733633433639,-150.0,0.00022898,2]
[344625612,1733633433650,-150.0,0.00022898,2]
[344625613,1733633433660,-150.0,0.00022898,2]
[344625614,1733633433670,-150.0,0.00022898,2]
[344625615,1733633433680,-150.0,0.00022898,2]
[344625616,1733633433690,-1177.98,0.000229,2]
[344625617,1733633433701,-5000.0,0.000229,2]
[344625618,1733633433712,-37342.0,0.00022986,2]
[344625619,1733633433723,-500.0,0.00022989,2]
[344625620,1733633433733,-500.0,0.00022989,2]
[344625621,1733633433744,-437.30014657,0.00022989,2]
[344625622,1733633433754,-5100.0,0.0002299,5]
[344625623,1733633433766,-5100.0,0.0002299,12]
[344625624,1733633434018,-5100.0,0.0002299,13]
[344625625,1733633434035,-5100.0,0.0002299,14]
[344625626,1733633434056,-5100.0,0.0002299,10]
[344625627,1733633434067,-1000.0,0.00022993,5]
[344625628,1733633434076,-9605.2111676,0.00022994,2]
[344625629,1733633434085,-1753.6685432,0.00022994,2]
[344625630,1733633434095,-1641.9694701,0.00022994,2]
[344625631,1733633434104,-8765.67872665,0.00022998,10]
[344625632,1733633434113,-648.82,0.00022998,2]
[344625633,1733633434124,-835.85,0.00022998,2]
[344625634,1733633434134,-1000.0,0.00022999,5]
[344625635,1733633434143,-293.89,0.00022999,5]
[344625636,1733633434152,-500.0,0.00022999,2]
[344625637,1733633434162,-500.0,0.00022999,2]
[344625638,1733633434172,-500.0,0.00022999,2]
[344625639,1733633434182,-500.0,0.00022999,2]
[344625640,1733633434191,-504.57836878,0.00022999,2]
[344625641,1733633434200,-520.54866568,0.00022999,2]
[344625642,1733633434210,-295.90138036,0.00022999,2]
[344625643,1733633434219,-500.0,0.00022999,2]
[344625644,1733633434229,-500.0,0.00022999,2]
[344625645,1733633434238,-500.0,0.00022999,2]
[344625646,1733633434247,-500.0,0.00022999,2]
[344625647,1733633434257,-500.0,0.00022999,2]
[344625648,1733633434266,-500.0,0.00022999,2]
[344625649,1733633434275,-500.0,0.00022999,2]
[344625650,1733633434284,-500.0,0.00022999,2]
[344625651,1733633434295,-500.0,0.00022999,2]
[344625652,1733633434304,-500.0,0.00022999,2]
[344625653,1733633434313,-500.0,0.00022999,2]
[344625654,1733633434322,-500.0,0.00022999,2]
[344625655,1733633434331,-500.0,0.00022999,2]
[344625656,1733633434341,-500.0,0.00022999,2]
[344625657,1733633434350,-500.0,0.00022999,2]
[344625658,1733633434359,-500.0,0.00022999,2]
[344625659,1733633434368,-500.0,0.00022999,2]
[344625660,1733633434379,-500.0,0.00022999,2]
[344625661,1733633434389,-692.37,0.00022999,2]
[344625662,1733633434399,-692.37,0.00022999,2]
[344625663,1733633434409,-692.37,0.00022999,2]
[344625664,1733633434419,-692.37,0.00022999,2]
[344625665,1733633434428,-692.37,0.00022999,2]
[344625666,1733633434437,-692.37,0.00022999,2]
[344625667,1733633434447,-692.37,0.00022999,2]
[344625668,1733633434456,-692.37,0.00022999,2]
[344625669,1733633434466,-692.37,0.00022999,2]
[344625670,1733633434475,-692.37,0.00022999,2]
[344625671,1733633434485,-692.37,0.00022999,2]
[344625672,1733633434494,-692.37,0.00022999,2]
[344625673,1733633434504,-692.37,0.00022999,2]
[344625674,1733633434514,-692.37,0.00022999,2]
[344625675,1733633434523,-692.37,0.00022999,2]
[344625676,1733633434533,-692.37,0.00022999,2]
[344625677,1733633434544,-692.37,0.00022999,2]
[344625678,1733633434557,-692.37,0.00022999,2]
[344625679,1733633434567,-692.37,0.00022999,2]
[344625680,1733633434576,-692.37,0.00022999,2]
[344625681,1733633434585,-692.37,0.00022999,2]
[344625682,1733633434595,-692.37,0.00022999,2]
[344625683,1733633434604,-692.37,0.00022999,2]
[344625684,1733633434613,-692.45465933,0.00022999,2]
[344625685,1733633434623,-835.85,0.00022999,2]
[344625686,1733633434632,-835.85,0.00022999,2]
[344625687,1733633434641,-835.85,0.00022999,2]
[344625688,1733633434651,-835.85,0.00022999,2]
[344625689,1733633434660,-835.85,0.00022999,2]
[344625690,1733633434669,-835.85,0.00022999,2]
[344625691,1733633434678,-835.85,0.00022999,2]
[344625692,1733633434687,-835.85,0.00022999,2]
[344625693,1733633434696,-835.85,0.00022999,2]
[344625694,1733633434706,-835.85,0.00022999,2]
[344625695,1733633434715,-835.85,0.00022999,2]
[344625696,1733633434724,-835.85,0.00022999,2]
[344625697,1733633434734,-835.85,0.00022999,2]
[344625698,1733633434743,-835.85,0.00022999,2]
[344625699,1733633434752,-835.85,0.00022999,2]
[344625700,1733633434761,-835.85,0.00022999,2]
[344625701,1733633434770,-835.85,0.00022999,2]
[344625702,1733633434780,-835.85,0.00022999,2]
[344625703,1733633434789,-835.85,0.00022999,2]
[344625704,1733633434800,-835.85,0.00022999,2]
[344625705,1733633434810,-835.85,0.00022999,2]
[344625706,1733633434820,-835.94741017,0.00022999,2]
[344625707,1733633434830,-1110.0,0.00023,2]
[344625708,1733633434841,-4021.73745518,0.00023,2]
[344625709,1733633434850,-2995.0,0.00023,2]
[344625710,1733633434859,-58720.71674392,0.00023,3]
[344625711,1733633434877,-2585.0,0.00023,3]
[344625715,1733633438065,-518.35408777,0.00023,3]
[344625716,1733633438120,-714.01773402,0.00023,3]
[344625717,1733633438132,-591.55965226,0.00023,3]
[344625718,1733633438176,-8678.98579401,0.00023,3]
[344625719,1733633438237,-5683.92812213,0.00023,3]
[344625720,1733633438248,-1374.20533368,0.00023,3]
[344625721,1733633438293,-628.2920007,0.00023,3]
[344625723,1733633438349,-3832.10182229,0.00023,3]
[344625724,1733633438360,-617.4433453,0.00023,3]